bitfinex-derivatives/quotes_ETHF0:USTF0_20250824
["timestamp","ask_amount","ask_price","bid_price","bid_amount"]
[1756003004718,33.3378,4784.1,4784.0,0.65249]
[1756003004917,52.5608,4784.1,4784.0,0.65249]
[1756003005222,52.5608,4784.1,4784.0,0.88579]
[1756003005723,52.5608,4784.1,4784.0,1.43559]
[1756003005911,33.3378,4784.1,4784.0,1.43559]
[1756003006118,52.5578,4784.1,4784.0,1.43559]
[1756003006522,33.3378,4784.1,4784.0,1.43559]
[1756003007020,52.5528,4784.1,4784.0,0.80389]
[1756003007218,52.5528,4784.1,4784.0,0.2343]
[1756003007418,52.97098,4784.1,4783.8,0.4182]
[1756003008119,56.5528,4784.1,4783.1,0.41826]
[1756003008318,3.62605,4783.3,4782.6,0.2333]
[1756003008519,0.41827,4783.1,4782.9,0.41828]
[1756003008715,19.223,4783.0,4782.8,0.41828]
[1756003008926,19.223,4783.0,4782.8,0.65258]
[1756003009525,3.62605,4783.3,4783.0,0.41827]
[1756003009820,0.41825,4783.3,4783.1,0.41826]
[1756003010030,19.223,4783.2,4783.1,0.41826]
[1756003010519,0.41828,4783.0,4782.6,0.65261]
[1756003010828,19.223,4782.9,4782.7,0.41829]
[1756003011014,19.223,4782.9,4782.8,0.2343]
[1756003011420,3.2078,4783.3,4782.9,0.2343]
[1756003011618,19.225,4783.2,4782.9,0.2343]
[1756003011816,0.41831,4782.6,4782.4,0.2343]
[1756003012018,0.41833,4782.4,4782.2,3.2078]
[1756003013525,0.41833,4782.4,4782.2,3.86044]
[1756003013817,19.224,4782.5,4782.3,0.41833]
[1756003014123,19.224,4782.5,4782.4,0.2343]
[1756003014820,0.41836,4782.0,4781.9,0.2343]
[1756003015025,19.63636,4782.0,4781.9,0.2343]
[1756003015228,19.218,4782.0,4781.9,0.2343]
[1756003017421,0.41836,4782.1,4781.9,0.65267]
[1756003017725,19.215,4782.0,4781.9,0.41837]
[1756003017919,19.215,4782.0,4781.9,1.04177]
[1756003018120,19.215,4782.0,4781.9,1.43577]
[1756003018315,0.41833,4782.4,4782.2,0.41834]
[1756003018517,19.209,4782.3,4782.2,1.31534]
[1756003018923,19.209,4782.3,4782.2,1.3646]
[1756003019124,19.209,4782.3,4782.2,0.2343]
[1756003019321,0.41834,4782.2,4781.9,0.41837]
[1756003019520,0.41834,4782.2,4782.0,0.2343]
[1756003019725,0.41834,4782.2,4782.0,0.65266]
[1756003019919,0.41834,4782.2,4782.0,0.2343]
[1756003020126,0.41834,4782.2,4782.0,0.65266]
[1756003020428,19.209,4782.3,4782.2,0.65264]
[1756003020924,19.209,4782.3,4782.2,0.2343]
[1756003021519,22.4168,4782.3,4781.5,0.2343]
[1756003021724,0.41838,4781.8,4781.5,0.4184]
[1756003021921,19.201,4781.7,4781.6,0.2343]
[1756003022116,19.201,4781.7,4781.6,0.4676]
[1756003022722,19.201,4781.7,4781.6,1.3646]
[1756003023225,19.197,4781.8,4781.7,1.78299]
[1756003023622,0.41832,4782.5,4782.3,0.94033]
[1756003023825,19.207,4782.4,4782.3,1.3442]
[1756003024326,3.2078,4782.8,4782.3,0.8705]
[1756003024527,19.208,4782.7,4782.4,0.522]
[1756003024722,19.6263,4782.7,4782.5,0.89201]
[1756003024922,19.6263,4782.7,4782.6,0.2333]
[1756003025119,19.208,4782.7,4781.5,0.8222]
[1756003025318,0.41834,4782.4,4782.2,0.41834]
[1756003025526,0.41834,4782.4,4782.3,0.2333]
[1756003025828,3.2078,4782.8,4782.4,0.3485]
[1756003026125,19.21,4782.7,4782.6,1.3442]
[1756003026928,19.21,4782.7,4782.6,0.9957]
[1756003027722,3.2078,4782.8,4782.7,1.7625]
[1756003028129,19.205,4782.8,4782.7,1.7625]
[1756003028518,3.2078,4783.5,4783.3,0.2333]
[1756003028724,19.62424,4783.4,4783.2,0.65865]
[1756003028928,3.2078,4783.5,4783.3,0.8705]
[1756003029129,19.205,4783.4,4783.3,0.8705]
[1756003029318,19.205,4783.4,4783.3,0.7553]
[1756003029718,19.205,4783.4,4783.3,1.3442]
[1756003030231,19.205,4783.4,4783.3,0.9957]
[1756003030428,3.2078,4784.0,4783.9,0.4182]
[1756003030730,0.41813,4784.7,4784.6,0.2333]
[1756003030923,20.11782839,4784.7,4784.6,0.2333]
[1756003033623,19.69969839,4784.7,4784.6,0.2333]
[1756003034023,19.209,4784.7,4784.6,0.2333]
[1756003034928,3.62592,4784.8,4784.6,0.522]
[1756003035133,3.2078,4784.8,4784.7,0.9957]
[1756003035332,22.4138,4784.8,4784.7,0.9957]
[1756003036629,22.4138,4784.8,4784.7,1.3442]
[1756003037924,3.2078,4784.8,4784.7,1.3442]
[1756003038128,3.2078,4786.0,4785.9,0.41802]
[1756003038327,22.4078,4786.0,4785.9,0.7737]
[1756003038631,22.4078,4786.0,4785.9,0.2333]
[1756003039027,22.4078,4786.0,4785.9,0.9957]
[1756003039232,22.4088,4786.0,4785.9,1.3442]
[1756003039425,22.4088,4786.0,4785.9,0.2333]
[1756003039833,0.41802,4785.9,4785.6,0.2333]
[1756003040025,0.41802,4785.9,4785.6,0.2404]
[1756003040221,0.41802,4785.9,4785.8,0.2333]
[1756003040426,0.41802,4785.9,4785.8,0.6207]
[1756003040728,22.82681,4786.0,4785.9,0.2333]
[1756003041131,22.82681,4786.0,4785.9,0.4737]
[1756003043538,22.4088,4786.0,4785.9,1.3442]
[1756003044233,22.3948,4786.0,4785.9,1.3442]
[1756003046539,22.3948,4786.0,4785.9,0.9957]
[1756003046933,1.04485,4786.9,4785.9,0.9957]
[1756003046934,0.7117,4788.0,4787.9,0.93985]
[1756003047138,0.7117,4788.0,4787.9,1.76205]
[1756003047139,0.64537852,4788.0,4787.9,1.76205]
[1756003047441,0.1572,4789.1,4789.0,0.56475]
[1756003047630,0.3944,4789.4,4789.3,0.522]
[1756003047830,1.323,4789.4,4789.3,0.5404]
[1756003048136,0.7254,4789.4,4789.3,1.3442]
[1756003048336,1.323,4789.4,4789.3,1.3442]
[1756003048732,1.0958,4789.4,4789.3,1.3442]
[1756003049128,20.693,4789.4,4789.2,0.41772]
[1756003049336,1.0958,4788.5,4788.4,0.8705]
[1756003049545,1.323,4788.5,4788.4,0.7624]
[1756003049735,0.5413,4788.3,4788.2,0.2333]
[1756003049934,0.5413,4788.3,4787.9,3.2078]
[1756003049935,1.74084,4788.0,4787.9,3.2078]
[1756003050234,0.5413,4787.7,4787.6,0.2404]
[1756003050429,1.323,4787.7,4787.6,0.2404]
[1756003050628,1.323,4787.7,4787.6,0.5404]
[1756003051032,1.323,4787.7,4787.6,1.3442]
[1756003052742,19.78986,4787.8,4787.1,3.62571]
[1756003052743,1.323,4787.2,4787.1,3.2078]
[1756003053337,0.1572,4787.2,4787.1,3.7298]
[1756003053543,19.9351,4787.4,4787.2,0.8222]
[1756003053840,19.9351,4787.4,4787.3,1.3314]
[1756003054339,20.8995,4787.4,4787.3,1.3314]
[1756003054540,21.1219,4787.4,4787.3,1.3314]
[1756003055344,21.1219,4787.4,4787.1,3.2078]
[1756003055345,1.75981,4787.2,4787.1,3.2078]
[1756003057338,1.75981,4787.2,4787.1,3.5818]
[1756003057741,0.95925,4786.7,4786.6,0.7445]
[1756003057940,0.95925,4786.7,4786.6,0.9735]
[1756003057941,1.75985,4786.7,4786.6,0.9735]
[1756003058945,1.3419,4786.7,4786.6,0.9735]
[1756003059135,1.3419,4786.7,4786.6,1.3337]
[1756003059547,1.1195,4786.7,4786.6,1.3337]
[1756003059942,0.879,4786.7,4786.6,1.3337]
[1756003060338,0.3915,4786.7,4786.6,1.3337]
[1756003060543,0.1551,4786.7,4786.6,1.3337]
[1756003060743,0.3915,4786.7,4786.6,1.3337]
[1756003060941,1.3419,4786.7,4786.6,1.3337]
[1756003063149,0.41795,4786.8,4786.6,1.3337]
[1756003063344,0.3377,4787.2,4786.9,0.5892]
[1756003063648,0.80941,4787.2,4787.1,1.3337]
[1756003063950,1.14711,4787.2,4787.1,1.3337]
[1756003064347,1.78086431,4787.2,4787.1,1.3337]
[1756003064543,2.24376431,4787.2,4787.1,1.3337]
[1756003064743,1.75981,4787.2,4787.1,0.7445]
[1756003065044,2.24381898,4787.2,4787.1,0.7445]
[1756003065244,2.24381898,4787.2,4787.1,1.3337]
[1756003065644,0.95924,4786.8,4786.7,1.75165]
[1756003065850,1.53744,4786.8,4786.7,1.75165]
[1756003066350,1.53744,4786.8,4786.7,1.3337]
[1756003066746,1.1195,4786.8,4786.7,1.3337]
[1756003067049,1.3419,4786.8,4786.7,1.3337]
[1756003069345,0.80942,4787.1,4787.0,0.5243]
[1756003069553,0.80942,4787.1,4787.0,1.3337]
[1756003069854,1.75982,4787.1,4787.0,1.3337]
[1756003070447,0.1551,4787.1,4787.0,1.3337]
[1756003071054,1.3419,4787.1,4787.0,1.3337]
[1756003071252,1.3419,4787.1,4787.0,0.9735]
[1756003071555,19.329,4787.4,4786.7,1.1047]
[1756003071556,0.5413,4786.8,4786.7,1.1047]
[1756003071746,1.3419,4786.8,4786.7,1.3337]
[1756003072147,0.5413,4786.8,4786.7,1.3337]
[1756003072552,0.879,4786.8,4786.7,1.3337]
[1756003072948,0.95929,4786.3,4786.2,0.7445]
[1756003073144,0.418,4786.1,4786.0,3.2078]
[1756003073345,1.7599,4786.1,4786.0,3.2078]
[1756003073657,1.7599,4786.1,4786.0,4.5415]
[1756003073952,0.8006,4786.1,4785.6,0.5892]
[1756003074152,0.879,4785.7,4785.6,1.3337]
[1756003074453,0.5413,4785.7,4785.6,1.59406216]
[1756003074854,0.5413,4785.7,4785.6,2.01211216]
[1756003075360,0.5413,4785.7,4785.6,1.59406216]
[1756003075654,1.3419,4785.7,4785.6,1.59406216]
[1756003075952,1.3419,4785.7,4785.6,0.86436216]
[1756003076145,1.3419,4785.7,4785.6,0.86439039]
[1756003076351,1.3419,4785.7,4785.6,1.23389039]
[1756003076557,0.1551,4785.7,4785.6,1.59409039]
[1756003076849,0.1551,4786.2,4786.1,1.1047]
[1756003077052,0.57306,4786.7,4786.6,0.1538]
[1756003077255,21.07353229,4786.7,4786.6,1.3337]
[1756003077457,21.53643229,4786.7,4786.6,1.3337]
[1756003077658,21.31403229,4786.7,4786.6,1.3337]
[1756003078263,21.05086,4786.7,4786.6,1.3337]
[1756003078452,0.57308,4786.4,4786.3,0.5243]
[1756003078652,1.75988,4786.4,4786.3,1.00506288]
[1756003078852,1.75988,4786.4,4786.3,1.59426288]
[1756003079956,1.29698,4786.4,4786.3,1.3337]
[1756003080160,1.29698,4786.4,4786.3,1.59455103]
[1756003080861,1.75988,4786.4,4786.3,1.59455103]
[1756003082254,1.75988,4786.4,4786.3,1.59470198]
[1756003082966,1.75988,4786.4,4786.3,0.26100198]
[1756003085960,6.2466981,4786.4,4786.3,0.26100198]
[1756003086164,1.04516,4785.5,4785.1,3.2078]
[1756003086462,1.74958,4785.2,4785.1,3.2078]
[1756003086660,1.74958,4785.2,4785.1,3.46884403]
[1756003086966,1.74958,4785.2,4785.1,4.44964403]
[1756003087261,0.90888,4785.2,4785.1,4.78174403]
[1756003087466,0.57218,4785.2,4785.1,4.78174403]
[1756003088268,1.1056,4785.6,4785.5,0.5264]
[1756003088461,1.1056,4785.6,4785.5,1.3129]
[1756003088764,1.29575,4785.6,4785.5,1.3129]
[1756003089161,1.52165,4785.6,4785.5,1.3129]
[1756003089963,1.52165,4785.6,4785.5,1.5737039]
[1756003090158,1.52165,4785.6,4785.5,1.3129]
[1756003090562,1.29575,4785.6,4785.5,1.3129]
[1756003090763,1.29575,4785.6,4785.5,1.57365585]
[1756003090764,1.74955,4785.6,4785.5,1.57365585]
[1756003091265,1.52165,4785.6,4785.5,1.57364941]
[1756003091460,0.3816,4785.6,4785.5,1.57364941]
[1756003091660,0.1541,4785.6,4785.5,1.57364941]
[1756003091864,0.418,4786.2,4786.0,0.41801]
[1756003092166,19.8501,4786.2,4786.1,1.3129]
[1756003092370,0.41799,4786.2,4786.1,1.04721048]
[1756003092660,0.57209,4786.2,4786.1,1.57361048]
[1756003094064,0.57209,4786.2,4785.6,0.2255]
[1756003094065,0.95904,4785.7,4785.6,0.2255]
[1756003094266,21.02154,4785.7,4785.6,0.70875182]
[1756003094461,21.02154,4785.7,4785.6,0.85895182]
[1756003094766,21.02154,4785.7,4785.6,1.01265182]
[1756003094960,21.02154,4785.7,4785.6,0.26075182]
[1756003095459,1.74961,4784.9,4784.8,1.3129]
[1756003095663,1.3315,4784.9,4784.8,1.57366798]
[1756003096061,0.8777,4784.9,4784.8,1.57366798]
[1756003096255,19.272,4785.2,4784.9,0.41811]
[1756003096460,19.7628,4785.2,4785.1,1.3129]
[1756003096656,19.9903,4785.2,4785.1,1.57366798]
[1756003097764,19.4261,4785.2,4785.1,1.57366798]
[1756003098666,19.4261,4785.2,4785.1,1.5736798]
[1756003098868,0.1541,4785.2,4785.1,1.5736798]
[1756003099062,0.1541,4785.2,4785.1,1.3129]
[1756003099262,0.1541,4785.2,4785.1,1.5737056]
[1756003099468,0.7183,4785.2,4785.1,1.5737056]
[1756003100272,0.3816,4785.2,4785.1,1.5737056]
[1756003102268,1.3315,4785.2,4785.1,1.5737056]
[1756003103966,1.3315,4785.2,4785.1,1.3129]
[1756003104271,1.3315,4785.2,4785.1,0.9808]
[1756003104472,1.74962,4784.8,4784.7,3.2078]
[1756003104674,21.00162,4784.8,4784.7,3.2078]
[1756003104973,20.5835,4784.8,4784.7,4.5207]
[1756003105162,0.1541,4784.8,4784.7,4.5207]
[1756003105367,19.82419,4785.1,4785.0,0.5264]
[1756003105669,20.38839,4785.1,4785.0,1.3129]
[1756003105868,0.73157,4785.4,4785.3,0.5264]
[1756003106065,0.95907,4785.4,4785.3,1.3129]
[1756003106266,0.57217,4785.4,4785.3,1.3129]
[1756003106465,22.87685,4785.6,4785.3,1.3129]
[1756003106766,23.03095,4785.6,4785.5,1.3129]
[1756003106967,24.20835,4785.6,4785.5,1.3129]
[1756003107561,21.00055,4785.6,4785.5,1.3129]
[1756003108865,19.4051,4785.6,4785.5,1.3129]
[1756003109064,0.1541,4786.3,4786.2,0.41799]
[1756003109365,0.1541,4786.3,4786.2,0.96519]
[1756003109566,19.4759,4786.6,4786.4,0.41797]
[1756003109768,0.1541,4786.5,4786.4,0.94437]
[1756003110069,0.3816,4786.5,4786.4,1.73087]
[1756003110268,1.3315,4786.5,4786.4,1.73087]
[1756003110463,0.8777,4786.5,4786.4,1.73087]
[1756003110672,19.25,4786.6,4786.4,1.13671423]
[1756003110972,19.25,4786.6,4786.5,1.3129]
[1756003111369,0.7167,4786.9,4786.8,0.5264]
[1756003111575,0.1541,4786.9,4786.8,1.73084]
[1756003111771,19.246,4787.0,4786.8,1.73084]
[1756003111972,20.3526,4787.3,4787.2,1.73081]
[1756003112475,20.3526,4787.3,4787.2,1.3129]
[1756003112672,20.5805,4787.3,4787.2,0.6081]
[1756003112869,20.5805,4787.3,4787.2,0.3792]
[1756003113366,1.3315,4786.6,4786.5,1.3129]
[1756003113571,1.3315,4786.6,4786.4,0.41797]
[1756003113772,1.3658,4786.4,4786.3,3.2078]
[1756003115682,1.3658,4786.4,4786.3,4.5408]
[1756003116675,0.8926,4786.4,4786.3,4.5408]
[1756003116868,19.247,4786.5,4786.4,1.75098]
[1756003117068,19.4074,4786.5,4786.4,1.75098]
[1756003117281,20.6128,4786.5,4786.4,1.75098]
[1756003117471,20.6128,4786.5,4786.4,0.1483]
[1756003117667,1.20438,4786.4,4786.3,3.2078]
[1756003117873,1.78378,4786.4,4786.3,3.2078]
[1756003118073,1.3658,4786.4,4786.3,3.2078]
[1756003118282,1.3658,4786.4,4786.3,3.5919]
[1756003118481,1.3658,4786.4,4786.3,3.7402]
[1756003118686,1.3658,4786.4,4786.3,3.9769]
[1756003119074,1.3658,4786.4,4786.3,4.2064]
[1756003119275,1.3658,4786.4,4786.3,4.5408]
[1756003119475,19.239,4786.5,4786.4,0.96198]
[1756003119675,0.8179,4786.9,4786.3,3.2078]
[1756003119676,0.7344,4786.9,4786.8,0.544]
[1756003119876,0.4179,4787.3,4786.9,0.96193]
[1756003119877,19.234,4787.0,4786.9,0.96193]
[1756003120076,19.234,4787.0,4786.9,1.75093]
[1756003120875,19.3944,4787.0,4786.9,1.75093]
[1756003122077,1.20435,4786.7,4786.6,0.544]
[1756003122277,0.7864,4786.7,4786.6,1.333]
[1756003122684,1.1311,4786.7,4786.6,1.333]
[1756003123488,1.1311,4786.7,4786.3,3.2078]
[1756003123489,1.78377,4786.5,4786.4,0.544]
[1756003123689,1.3658,4786.4,4786.3,3.2078]
[1756003125190,0.5479,4785.9,4785.8,3.9813]
[1756003125393,1.3658,4785.9,4785.8,4.5408]
[1756003125590,1.3658,4785.9,4785.8,4.95883]
[1756003125981,1.3658,4785.9,4785.8,4.5408]
[1756003130685,1.3658,4785.9,4785.8,1.1035]
[1756003130887,1.78386,4785.4,4785.3,3.2078]
[1756003131094,20.99986,4785.4,4785.3,3.2078]
[1756003131690,24.99986,4785.4,4785.3,3.2078]
[1756003131890,0.96601,4784.9,4784.8,0.2251]
[1756003132191,1.78392,4784.7,4784.6,3.3668]
[1756003132391,1.78392,4784.7,4784.6,3.2078]
[1756003132587,1.3658,4784.7,4784.6,3.2078]
[1756003132791,1.3658,4784.7,4784.6,3.9769]
[1756003132998,1.3658,4784.7,4784.6,4.2064]
[1756003133494,1.3658,4784.7,4784.6,4.5408]
[1756003137899,0.96606,4784.3,4784.2,0.7735]
[1756003138205,0.96606,4784.3,4784.2,1.333]
[1756003138206,20.99296,4784.3,4784.2,1.333]
[1756003138402,20.17506,4784.3,4784.2,1.333]
[1756003138602,19.209,4784.3,4784.2,1.333]
[1756003139205,0.2347,4784.9,4784.7,0.41812]
[1756003139404,19.6411,4784.9,4784.8,1.333]
[1756003139605,20.2151,4784.9,4784.8,1.333]
[1756003139804,20.6118,4784.9,4784.8,1.333]
[1756003140300,19.7939,4784.9,4784.8,1.333]
[1756003141004,20.1386,4784.9,4784.8,1.333]
[1756003141406,20.79521,4784.9,4784.8,1.333]
[1756003141606,21.02991,4784.9,4784.8,1.333]
[1756003142507,20.6118,4784.9,4784.8,1.333]
[1756003142802,0.3951,4785.3,4785.2,0.159]
[1756003143007,0.3951,4785.3,4785.2,1.333]
[1756003143008,20.3673,4785.3,4785.2,1.333]
[1756003143210,20.6058,4785.3,4785.2,1.333]
[1756003143405,0.5479,4785.0,4784.9,0.3841]
[1756003143610,1.1311,4784.3,4784.2,0.544]
[1756003143909,1.3579,4784.3,4784.2,0.544]
[1756003144112,1.3579,4784.3,4784.2,1.0021]
[1756003144612,1.3579,4784.3,4784.2,1.3597]
[1756003145605,0.3897,4784.3,4784.2,1.3597]
[1756003145805,19.233,4784.6,4784.2,0.8157]
[1756003146005,20.5795,4784.6,4784.5,1.3442]
[1756003147106,20.5795,4784.6,4784.5,0.9866]
[1756003147308,1.1197,4784.6,4784.5,1.3442]
[1756003147510,0.1534,4784.9,4784.8,1.61081]
[1756003147706,4.97237,4785.4,4785.3,1.3442]
[1756003147913,3.2078,4785.4,4785.3,1.3442]
[1756003148108,0.1534,4785.8,4785.7,1.76224]
[1756003148303,30.4464,4786.5,4786.4,0.1515]
[1756003148511,30.4464,4786.5,4786.4,1.3442]
[1756003148512,49.6934,4786.5,4786.4,1.3442]
[1756003148711,20.1269,4786.5,4786.4,1.3442]
[1756003149113,20.5935,4786.5,4786.4,1.3442]
[1756003149314,20.5935,4786.5,4786.4,1.76217]
[1756003150817,20.5935,4786.5,4786.4,1.3442]
[1756003152713,1.1067,4786.2,4786.1,0.377]
[1756003152912,1.3465,4786.0,4785.9,3.2078]
[1756003153115,20.5845,4786.0,4785.9,4.3332]
[1756003153316,20.5845,4786.0,4785.9,4.552]
[1756003155123,19.3914,4786.0,4785.9,4.552]
[1756003155424,0.1534,4786.4,4786.3,1.3442]
[1756003156219,19.7635,4786.7,4786.6,0.5285]
[1756003156415,20.5755,4786.7,4786.6,1.3442]
[1756003159923,0.3771,4786.7,4786.6,1.3442]
[1756003160222,0.7225,4786.7,4786.6,1.3442]
[1756003162020,0.3771,4786.7,4786.6,1.3442]
[1756003162516,19.218,4786.9,4786.8,0.5285]
[1756003162715,20.5645,4786.9,4786.8,1.3442]
[1756003162911,1.3465,4786.5,4786.4,3.93088]
[1756003163516,1.3465,4786.5,4786.4,3.5129]
[1756003163919,1.3465,4786.5,4786.4,3.2078]
[1756003164920,1.3465,4786.5,4786.4,3.5129]
[1756003165113,1.3465,4786.5,4786.4,4.1944]
[1756003165621,1.3465,4786.5,4786.4,4.552]
[1756003168225,1.0011,4786.5,4786.4,4.552]
[1756003168428,0.7743,4786.5,4786.4,4.552]
[1756003168927,1.1197,4786.5,4786.4,4.552]
[1756003169418,19.208,4786.6,4786.5,0.41797]
[1756003169622,0.7743,4787.0,4786.9,1.3442]
[1756003169828,20.3207,4787.0,4786.9,1.3442]
[1756003170029,20.5475,4787.0,4786.9,1.3442]
[1756003171633,0.812,4787.4,4786.9,1.3442]
[1756003171831,1.3465,4787.4,4787.3,1.3442]
[1756003172125,20.5475,4787.4,4787.3,1.3442]
[1756003173932,20.5475,4787.4,4787.3,0.9866]
[1756003174427,20.5475,4787.4,4787.3,0.7473]
[1756003175331,20.5475,4787.4,4787.3,0.1515]
[1756003176434,21.03292855,4787.4,4787.3,0.1515]
[1756003176624,0.5226,4787.1,4787.0,1.75942]
[1756003176821,20.494,4787.1,4787.0,1.75942]
[1756003177031,20.494,4787.1,4786.4,4.25274]
[1756003177032,20.494,4787.1,4786.8,0.41794]
[1756003177234,0.7419,4786.9,4786.8,0.65234]
[1756003177433,1.293,4786.9,4786.8,0.2344]
[1756003177636,1.293,4786.9,4786.8,0.3826]
[1756003177936,1.293,4786.9,4786.8,1.3415]
[1756003180834,1.71096,4786.6,4786.5,0.1513]
[1756003181028,20.90996,4786.6,4786.5,0.1513]
[1756003181233,20.90996,4786.6,4786.5,0.3857]
[1756003182334,20.492,4786.6,4786.5,1.3415]
[1756003182732,0.5226,4787.1,4787.0,0.95792]
[1756003183037,20.0499,4787.1,4787.0,1.75942]
[1756003183538,19.7216,4787.1,4787.0,1.75942]
[1756003183929,20.492,4787.1,4787.0,1.75942]
[1756003184530,20.2692,4787.1,4787.0,1.75942]
[1756003184732,20.0499,4787.1,4787.0,1.75942]
[1756003185334,19.7216,4787.1,4787.0,1.75942]
[1756003186328,20.492,4787.1,4787.0,1.75942]
[1756003187044,1.71092,4787.0,4786.9,3.2078]
[1756003187439,2.1970487,4787.0,4786.9,3.2078]
[1756003188336,2.1970487,4787.0,4786.9,2.606]
[1756003188541,0.3678,4786.1,4786.0,0.9912]
[1756003188841,19.5658,4786.1,4786.0,1.95219009]
[1756003189041,19.3465,4786.1,4786.0,1.95219009]
[1756003189743,0.1485,4786.1,4786.0,1.95219009]
[1756003190831,0.3678,4786.1,4786.0,1.95219009]
[1756003191730,0.3678,4786.1,4786.0,1.38509009]
[1756003191937,0.3678,4786.1,4785.9,3.2078]
[1756003191938,0.64026527,4786.1,4785.9,3.2078]
[1756003192137,1.27757527,4786.0,4785.9,3.2078]
[1756003193744,1.27757527,4786.0,4785.9,3.4422]
[1756003194036,1.27757527,4786.0,4785.9,0.2344]
[1756003195239,0.49176527,4786.0,4785.9,1.3415]
[1756003195439,19.197,4786.3,4786.2,1.3415]
[1756003195638,0.1485,4787.2,4787.1,1.75941]
[1756003195839,0.63983616,4787.2,4787.1,1.75941]
[1756003196039,0.85913616,4787.2,4787.1,0.5732]
[1756003196440,0.85913616,4787.2,4787.1,1.3415]
[1756003197340,0.3678,4787.2,4787.1,1.3415]
[1756003198141,19.5648,4787.2,4787.1,1.3415]
[1756003199144,0.3678,4787.2,4787.1,1.3415]
[1756003200341,0.56643,4786.9,4786.8,3.834]
[1756003200537,0.78573,4786.9,4786.8,4.5493]
[1756003200847,0.3678,4786.9,4786.8,4.5493]
[1756003201147,0.1485,4787.1,4787.0,0.54]
[1756003201350,19.198,4787.4,4787.0,0.54]
[1756003201548,19.61589,4787.4,4787.3,1.3415]
[1756003201849,19.76439,4787.4,4787.3,1.3415]
[1756003202049,19.98369,4787.4,4787.3,1.3415]
[1756003202251,0.78569,4787.4,4787.3,1.3415]
[1756003202845,0.2193,4787.9,4787.3,0.4688]
[1756003203048,3.2078,4788.2,4787.3,0.4688]
[1756003203049,3.62562,4788.2,4787.8,0.54]
[1756003203252,3.62562,4788.2,4787.3,3.2078]
[1756003203253,0.64005121,4788.1,4788.0,1.3415]
[1756003203553,0.1485,4788.1,4788.0,1.62386315]
[1756003204153,0.38,4788.1,4788.0,1.62386315]
[1756003204753,0.1485,4788.1,4788.0,1.62386315]
[1756003204949,3.2078,4788.2,4788.1,1.74233]
[1756003205149,3.2078,4788.2,4788.1,2.02458305]
[1756003205348,3.3669,4788.2,4788.1,2.02458305]
[1756003206357,19.196,4788.4,4788.3,1.74231]
[1756003206651,3.3669,4788.7,4788.6,0.95378]
[1756003206853,3.3669,4788.7,4788.6,1.60675305]
[1756003207253,3.5984,4788.7,4788.6,1.60675305]
[1756003208852,3.5984,4788.7,4788.6,0.60675305]
[1756003209053,3.5984,4788.7,4788.2,0.2298]
[1756003209054,0.5288,4788.3,4788.2,0.2298]
[1756003209251,0.5288,4788.3,4788.2,0.5593]
[1756003209451,0.5288,4788.3,4788.2,1.093]
[1756003209755,0.5394,4788.3,4788.2,1.093]
[1756003210150,0.9897,4788.3,4788.2,1.093]
[1756003210356,1.1377,4788.3,4788.2,1.093]
[1756003211659,1.1377,4788.3,4788.2,0.9351]
[1756003211858,1.1377,4788.3,4788.2,1.093]
[1756003212159,0.5394,4788.3,4788.2,1.093]
[1756003212359,0.3906,4788.3,4788.2,1.093]
[1756003213361,0.62,4788.3,4788.2,1.093]
[1756003213556,1.1377,4788.3,4788.2,1.093]
[1756003213754,1.1377,4788.3,4788.2,0.9351]
[1756003214558,0.5288,4787.9,4787.8,1.28335]
[1756003214753,1.1377,4787.9,4787.8,1.093]
[1756003214957,1.1377,4787.9,4787.8,0.9351]
[1756003215259,0.5288,4787.5,4787.4,1.35298]
[1756003215459,1.1377,4787.5,4787.4,1.35298]
[1756003217365,1.1377,4787.5,4787.4,0.64768]
[1756003217567,1.1377,4787.5,4787.4,0.2298]
[1756003217762,0.41791,4787.2,4787.1,0.2275]
[1756003217965,0.5288,4786.8,4786.7,4.16175]
[1756003218164,1.1377,4786.8,4786.7,4.16175]
[1756003218563,1.1377,4786.8,4786.7,4.71875]
[1756003218864,0.9897,4786.8,4786.7,4.71875]
[1756003219665,1.1377,4786.8,4786.7,4.71875]
[1756003219865,0.9897,4786.8,4786.7,4.71875]
[1756003220361,0.3906,4787.4,4787.3,1.51089]
[1756003220565,0.2315,4787.4,4787.3,1.71759]
[1756003220759,0.3906,4787.7,4787.6,0.95387]
[1756003220959,0.3906,4787.7,4787.6,1.093]
[1756003221363,0.8409,4787.7,4787.6,1.093]
[1756003221558,0.9897,4787.7,4787.6,1.093]
[1756003221757,1.1377,4787.7,4787.6,1.093]
[1756003222567,1.1377,4787.7,4787.6,1.21298439]
[1756003223067,1.1377,4787.7,4787.6,1.37088439]
[1756003223458,0.9897,4787.7,4787.6,1.37088439]
[1756003223660,0.5394,4787.7,4787.6,1.37088439]
[1756003224066,0.3906,4787.7,4787.6,1.37088439]
[1756003224467,3.2078,4788.2,4788.1,1.093]
[1756003224468,3.3669,4788.2,4788.1,1.093]
[1756003224667,19.3471,4788.6,4788.5,0.536]
[1756003224870,0.1591,4788.6,4788.5,1.58574729]
[1756003225069,0.3906,4788.6,4788.5,1.58574729]
[1756003225962,0.9897,4788.6,4788.5,1.37904729]
[1756003226164,1.1377,4788.6,4788.5,1.37904729]
[1756003226966,0.9897,4788.6,4788.5,1.37904729]